fUST/lending_fUST_20250801
["ID","MTS","AMOUNT","RATE_DAILY","PERIOD"]
[376542985,1754013057282,-639.16,0.00025984,2]
[376542986,1754013057291,-460.0,0.00025984,2]
[376542987,1754013057301,-561.38,0.00025984,2]
[376542988,1754013057310,-620.29,0.00025984,2]
[376542989,1754013057320,-747.27,0.00025984,2]
[376542990,1754013057330,-460.0,0.00025984,2]
[376542991,1754013057339,-460.0,0.00025984,2]
[376542992,1754013057348,-460.0,0.00025984,2]
[376542993,1754013057357,-596.1,0.00025984,2]
[376542994,1754013057366,-557.62,0.00025984,2]
[376542995,1754013057376,-600.0,0.00025985,2]
[376542996,1754013057385,-500.0,0.00025989,2]
[376542997,1754013057394,-760.47,0.0002599,4]
[376542998,1754013057404,-223.9,0.00025992,7]
[376542999,1754013057413,-460.0,0.00025994,2]
[376543000,1754013057423,-2028.54,0.00025994,2]
[376543001,1754013057432,-151.0,0.00026,20]
[376543002,1754013057441,-460.0,0.00026024,2]
[376543003,1754013057450,-476.39,0.00026024,2]
[376543004,1754013057460,-1038.79,0.00026024,2]
[376543005,1754013057471,-1794.93,0.00026024,2]
[376543006,1754013057482,-460.0,0.00026024,2]
[376543007,1754013057491,-460.0,0.00026024,2]
[376543008,1754013057501,-702.31,0.00026024,2]
[376543009,1754013057511,-608.56,0.00026024,2]
[376543010,1754013057520,-1381.67,0.00026025,2]
[376543011,1754013057530,-652.77,0.00026025,2]
[376543012,1754013057539,-659.67,0.00026025,2]
[376543013,1754013057549,-1310.58,0.00026026,2]
[376543014,1754013057558,-460.0,0.00026026,2]
[376543015,1754013057567,-460.0,0.00026026,2]
[376543016,1754013057577,-1216.54,0.00026026,2]
[376543017,1754013057586,-6295.89,0.00026026,2]
[376543018,1754013057595,-1149.39,0.00026026,2]
[376543019,1754013057604,-592.37,0.00026068,7]
[376543020,1754013057613,-732.52084476,0.00026092,2]
[376543021,1754013057622,-1000.0,0.000261,2]
[376543022,1754013057631,-460.0,0.00026191,2]
[376543023,1754013057641,-460.0,0.00026191,2]
[376543024,1754013057650,-465.43813563,0.00026191,2]
[376543025,1754013057660,-185.80684622,0.00026191,2]
[376543026,1754013057669,-462.89055068,0.00026191,2]
[376543027,1754013057678,-463.62715257,0.00026191,2]
[376543028,1754013057687,-461.58578468,0.00026191,2]
[376543029,1754013057696,-461.87610227,0.00026191,2]
[376543030,1754013057706,-460.0,0.00026191,2]
[376543031,1754013057715,-463.43545773,0.00026191,2]
[376543032,1754013057726,-460.0,0.00026191,2]
[376543033,1754013057735,-460.0,0.00026191,2]
[376543034,1754013057813,-466.53159633,0.00026191,2]
[376543035,1754013057828,-460.0,0.00026191,2]
[376543036,1754013057837,-460.0,0.00026191,2]
[376543037,1754013057847,-370.35305611,0.00026191,2]
[376543038,1754013057857,-460.0,0.00026191,2]
[376543039,1754013057868,-460.41625118,0.00026191,2]
[376543040,1754013057877,-460.0,0.00026191,2]
[376543041,1754013057887,-462.70234271,0.00026191,2]
[376543042,1754013057898,-460.0,0.00026191,2]
[376543043,1754013057907,-464.76983945,0.00026191,2]
[376543044,1754013057917,-460.0,0.00026191,2]
[376543045,1754013057926,-460.0,0.00026191,2]
[376543046,1754013057936,-460.0,0.00026191,2]
[376543047,1754013057945,-460.0,0.00026191,2]
[376543048,1754013057955,-460.0,0.00026191,2]
[376543049,1754013057964,-460.0,0.00026191,2]
[376543050,1754013057975,-460.0,0.00026191,2]
[376543051,1754013057984,-460.0,0.00026191,2]
[376543052,1754013057995,-460.0,0.00026191,2]
[376543053,1754013058006,-460.0,0.00026191,2]
[376543054,1754013058015,-460.0,0.00026191,2]
[376543055,1754013058024,-460.0,0.00026191,2]
[376543056,1754013058034,-460.0,0.00026191,2]
[376543057,1754013058044,-465.44398963,0.00026191,2]
[376543058,1754013058054,-460.0,0.00026191,2]
[376543059,1754013058063,-500.0,0.00026191,2]
[376543060,1754013058073,-462.15242353,0.00026191,2]
[376543061,1754013058082,-460.0,0.00026191,2]
[376543062,1754013058091,-542.5965945,0.00026191,2]
[376543063,1754013058100,-460.0,0.00026191,2]
[376543064,1754013058109,-460.0,0.00026191,2]
[376543065,1754013058119,-464.50916288,0.00026191,2]
[376543066,1754013058127,-460.0,0.00026191,2]
[376543067,1754013058137,-460.63327857,0.00026191,2]
[376543068,1754013058146,-460.0,0.00026191,2]
[376543069,1754013058156,-462.31883345,0.00026191,2]
[376543070,1754013058167,-460.0,0.00026191,2]
[376543071,1754013058176,-460.0,0.00026191,2]
[376543072,1754013058186,-461.61783483,0.00026191,2]
[376543073,1754013058195,-461.86411502,0.00026191,2]
[376543074,1754013058204,-462.64785478,0.00026191,2]
[376543075,1754013058214,-460.0,0.00026191,2]
[376543076,1754013058225,-475.74693843,0.00026191,2]
[376543077,1754013058235,-460.0,0.00026191,2]
[376543078,1754013058244,-460.0,0.00026191,2]
[376543079,1754013058253,-460.0,0.00026191,2]
[376543080,1754013058263,-460.0,0.00026191,2]
[376543081,1754013058272,-464.22356852,0.00026191,2]
[376543082,1754013058282,-460.0,0.00026191,2]
[376543083,1754013058291,-460.0,0.00026191,2]
[376543084,1754013058301,-460.0,0.00026191,2]
[376543085,1754013058311,-460.0,0.00026191,2]
[376543086,1754013058321,-461.77969656,0.00026191,2]
[376543087,1754013058330,-460.0,0.00026191,2]
[376543088,1754013058340,-462.63093381,0.00026191,2]
[376543089,1754013058349,-462.85393401,0.00026191,2]
[376543090,1754013058358,-460.0,0.00026191,2]
[376543091,1754013058368,-460.0,0.00026191,2]
[376543092,1754013058378,-462.28035136,0.00026191,2]
[376543093,1754013058387,-460.0,0.00026191,2]
[376543094,1754013058397,-462.91046138,0.00026191,2]
[376543095,1754013058407,-460.0,0.00026191,2]
[376543096,1754013058416,-460.82141505,0.00026191,2]
[376543097,1754013058425,-460.0,0.00026191,2]
[376543098,1754013058435,-460.0,0.00026191,2]
[376543099,1754013058444,-679.34,0.00026191,2]
[376543100,1754013058453,-462.64952964,0.00026191,2]
[376543101,1754013058462,-460.0,0.00026191,2]
[376543102,1754013058473,-463.90239403,0.00026191,2]
[376543103,1754013058482,-464.10012494,0.00026191,2]
[376543104,1754013058491,-462.04541293,0.00026191,2]
[376543105,1754013058501,-460.0,0.00026191,2]
[376543106,1754013058512,-460.0,0.00026191,2]
[376543107,1754013058522,-460.0,0.00026191,2]
[376543108,1754013058531,-505.24188297,0.00026191,2]
[376543109,1754013058542,-463.35894716,0.00026191,2]
[376543110,1754013058551,-466.96116483,0.00026191,2]
[376543111,1754013058561,-463.1057922,0.00026191,2]
[376543112,1754013058571,-460.0,0.00026191,2]
[376543113,1754013058580,-460.0,0.00026191,2]
[376543114,1754013058589,-460.0,0.00026191,2]
[376543115,1754013058599,-461.58625672,0.00026191,2]
[376543116,1754013058613,-460.0,0.00026191,2]
[376543117,1754013058630,-460.0,0.00026191,2]
[376543118,1754013058640,-460.0,0.00026191,2]
[376543119,1754013058649,-460.0,0.00026191,2]
[376543120,1754013058659,-460.0,0.00026191,2]
[376543121,1754013058670,-460.0,0.00026191,2]
[376543122,1754013058679,-304.69563042,0.00026191,2]
[376543123,1754013058689,-360.44483963,0.00026191,2]
[376543124,1754013058698,-460.0,0.00026191,2]
[376543125,1754013058710,-460.0,0.00026191,2]
[376543126,1754013058721,-465.14251147,0.00026191,2]
[376543127,1754013058731,-460.0,0.00026191,2]
[376543128,1754013058740,-460.0,0.00026191,2]
[376543129,1754013058749,-460.0,0.00026191,2]
[376543130,1754013058758,-460.0,0.00026191,2]
[376543131,1754013058768,-465.43932831,0.00026191,2]
[376543132,1754013058777,-462.65480624,0.00026191,2]
[376543133,1754013058787,-460.0,0.00026191,2]
[376543134,1754013058798,-461.81303461,0.00026191,2]
[376543135,1754013058807,-460.0,0.00026191,2]
[376543136,1754013058822,-587.39327739,0.00026191,2]
[376543137,1754013058832,-151.0,0.00026191,7]
[376543138,1754013058841,-468.9605429,0.00026191,2]
[376543139,1754013058852,-461.02218624,0.00026191,2]
[376543140,1754013058862,-151.0,0.000262,11]
[376543141,1754013058871,-1604.02,0.00026231,2]
[376543142,1754013058880,-460.0,0.00026247,2]
[376543143,1754013058890,-542.9,0.00026247,2]
[376543144,1754013058899,-2204.99,0.00026247,2]
[376543145,1754013058909,-2819.63,0.00026248,2]
[376543146,1754013058918,-460.0,0.00026248,2]
[376543147,1754013058928,-523.84,0.00026248,2]
[376543148,1754013058937,-2889.2,0.00026248,2]
[376543149,1754013058946,-479.84,0.00026248,2]
[376543150,1754013058955,-460.0,0.00026248,2]
[376543151,1754013058964,-647.09,0.00026248,2]
[376543152,1754013058976,-6096.72,0.00026248,2]
[376543153,1754013058986,-565.34,0.00026248,2]
[376543154,1754013058995,-785.43,0.00026248,2]
[376543155,1754013059005,-460.0,0.00026248,2]
[376543156,1754013059075,-732.52084476,0.00026248,2]
[376543157,1754013059090,-460.0,0.00026248,2]
[376543158,1754013059099,-600.0,0.0002625,2]
[376543159,1754013059108,-151.0,0.0002625,7]
[376543160,1754013059118,-460.0,0.00026258,2]
[376543161,1754013059127,-460.0,0.00026258,2]
[376543162,1754013059137,-581.47417789,0.00026258,2]
[376543163,1754013059147,-475.42732058,0.00026258,2]
[376543164,1754013059156,-460.0,0.00026258,2]
[376543165,1754013059166,-460.0,0.00026258,2]
[376543166,1754013059176,-460.0,0.00026258,2]
[376543167,1754013059185,-500.92,0.00026258,2]
[376543168,1754013059194,-460.0,0.00026258,2]
[376543169,1754013059203,-526.88,0.00026258,2]
[376543170,1754013059212,-648.08,0.00026258,2]
[376543171,1754013059224,-460.0,0.00026258,2]
[376543172,1754013059233,-945.42,0.00026258,2]
[376543173,1754013059243,-475.66702965,0.00026258,2]
[376543174,1754013059252,-639.16,0.00026258,2]
[376543175,1754013059261,-460.0,0.00026258,2]
[376543176,1754013059270,-561.38,0.00026258,2]
[376543177,1754013059279,-620.29,0.00026258,2]
[376543178,1754013059288,-747.27,0.00026258,2]
[376543179,1754013059298,-460.0,0.00026258,2]
[376543180,1754013059308,-470.98847629,0.00026258,2]
[376543181,1754013059317,-566.06761774,0.00026258,2]
[376543182,1754013059327,-596.1,0.00026258,2]
[376543183,1754013059336,-557.62,0.00026258,2]
[376543184,1754013059346,-345.0,0.00026268,2]
[376543185,1754013059355,-460.0,0.00026268,2]
[376543186,1754013059364,-2028.54,0.00026268,2]
[376543187,1754013059374,-460.0,0.00026298,2]
[376543188,1754013059383,-476.39,0.00026298,2]
[376543189,1754013059393,-1038.79,0.00026298,2]
[376543190,1754013059402,-1794.93,0.00026298,2]
[376543191,1754013059412,-460.0,0.00026298,2]
[376543192,1754013059421,-460.0,0.00026298,2]
[376543193,1754013059430,-702.31,0.00026298,2]
[376543194,1754013059440,-174.604177,0.00026298,7]
[376543195,1754013059451,-174.604177,0.00026298,7]
[376543196,1754013059460,-608.56,0.00026298,2]
[376543197,1754013059472,-1381.67,0.00026299,2]
[376543198,1754013059481,-652.77,0.00026299,2]
[376543199,1754013059491,-659.67,0.00026299,2]
[376543200,1754013059500,-2430.83,0.000263,7]
[376543201,1754013059510,-1310.58,0.000263,2]
[376543202,1754013059519,-151.0,0.000263,7]
[376543203,1754013059530,-169.03924003,0.000263,2]
[376543204,1754013059540,-339.63673251,0.000263,2]
[376543205,1754013059552,-1216.54,0.000263,2]
[376543206,1754013059562,-6295.89,0.000263,2]
[376543207,1754013059572,-1149.39,0.000263,2]
[376543208,1754013059581,-168.0,0.000263,2]
[376543209,1754013059590,-2146.0,0.00026306,2]
[376543210,1754013059599,-970.0,0.00026306,2]
[376543211,1754013059609,-635.0,0.00026306,2]
[376543212,1754013059618,-150.0,0.00026306,2]
[376543213,1754013059628,-151.0,0.00026306,7]
[376543214,1754013059639,-151.0,0.00026306,7]
[376543215,1754013059649,-152.651226,0.00026306,7]
[376543216,1754013059659,-152.995188,0.00026306,7]
[376543217,1754013059668,-154.358403,0.00026306,7]
[376543218,1754013059677,-345.0,0.00026327,2]
[376543219,1754013059687,-345.0,0.00026353,2]
[376543220,1754013059697,-505.03925933,0.00026363,2]
[376543221,1754013059709,-500.0,0.00026364,2]
[376543222,1754013059719,-345.0,0.00026397,2]
[376543223,1754013059731,-732.52084476,0.00026404,2]
[376543224,1754013059741,-800.0,0.00026407,2]
[376543225,1754013059751,-518.5,0.00026433,2]
[376543226,1754013059761,-460.0,0.00026433,2]
[376543227,1754013059770,-460.0,0.00026433,2]
[376543228,1754013059780,-460.0,0.00026433,2]
[376543229,1754013059789,-800.0,0.00026434,2]
[376543230,1754013059799,-246.82162103,0.00026434,7]
[376543231,1754013059809,-500.0,0.00026434,7]
[376543232,1754013059820,-199.77668805,0.00026434,7]
[376543233,1754013059831,-152.89542201,0.00026434,7]
[376543234,1754013059841,-152.41652481,0.00026434,7]
[376543235,1754013059851,-151.30813734,0.00026434,2]
[376543236,1754013059861,-152.74710036,0.00026434,2]
[376543237,1754013059875,-260.76826015,0.00026434,2]
[376543238,1754013059884,-153.55698323,0.00026434,2]
[376543239,1754013059893,-172.03370657,0.00026434,2]
[376543240,1754013059904,-500.0,0.00026434,2]
[376543241,1754013059913,-151.60995757,0.00026434,2]
[376543242,1754013059923,-152.48060661,0.00026434,2]
[376543243,1754013059932,-151.68385356,0.00026434,2]
[376543244,1754013059943,-151.0,0.00026434,2]
[376543245,1754013059952,-508.18432437,0.00026435,2]
[376543246,1754013059962,-500.0,0.00026437,2]
[376543247,1754013059972,-500.0,0.00026438,2]
[376543248,1754013059981,-500.0,0.00026438,2]
[376543249,1754013059991,-500.0,0.00026438,2]
[376543250,1754013060001,-500.0,0.00026438,2]
[376543251,1754013060010,-500.0,0.00026438,2]
[376543252,1754013060020,-500.0,0.00026438,2]
[376543253,1754013060030,-500.0,0.00026438,2]
[376543254,1754013060040,-500.0,0.00026438,2]
[376543255,1754013060050,-500.0,0.00026438,2]
[376543256,1754013060060,-500.0,0.00026438,2]
[376543257,1754013060069,-500.0,0.00026438,2]
[376543258,1754013060079,-605.5755891,0.00026438,2]
[376543259,1754013060089,-500.0,0.0002644,2]
[376543260,1754013060098,-337.54837965,0.0002644,2]
[376543261,1754013060107,-439.22342484,0.00026441,7]
[376543262,1754013060117,-155.700988,0.00026441,7]
[376543263,1754013060126,-156.283577,0.00026441,7]
[376543264,1754013060136,-152.144064,0.00026441,7]
[376543265,1754013060145,-155.940025,0.00026447,20]
[376543266,1754013060155,-150.380656,0.00026447,20]
[376543267,1754013060165,-151.0,0.00026457,7]
[376543268,1754013060174,-151.0,0.00026457,7]
[376543269,1754013060248,-151.0,0.00026457,7]
[376543270,1754013060258,-191.696748,0.00026457,7]
[376543271,1754013060268,-151.0,0.00026457,7]
[376543272,1754013060277,-157.160852,0.00026457,7]
[376543273,1754013060286,-151.0,0.00026457,7]
[376543274,1754013060296,-151.0,0.00026457,7]
[376543275,1754013060311,-151.0,0.00026457,7]
[376543276,1754013060320,-151.172793,0.00026457,7]
[376543277,1754013060330,-157.228028,0.00026457,7]
[376543278,1754013060339,-151.0,0.00026457,7]
[376543279,1754013060349,-151.0,0.00026457,7]
[376543280,1754013060358,-152.362496,0.00026457,7]
[376543281,1754013060367,-151.0,0.00026457,7]
[376543282,1754013060377,-151.0,0.00026457,7]
[376543283,1754013060386,-151.0,0.00026457,7]
[376543284,1754013060395,-151.0,0.00026457,7]
[376543285,1754013060404,-151.0,0.00026457,7]
[376543286,1754013060414,-151.0,0.00026457,7]
[376543287,1754013060423,-151.0,0.00026457,7]
[376543288,1754013060433,-152.549371,0.00026457,7]
[376543289,1754013060453,-151.0,0.00026457,7]
[376543290,1754013060473,-151.0,0.00026457,7]
[376543291,1754013060484,-151.0,0.00026457,7]
[376543292,1754013060495,-151.0,0.00026457,7]
[376543293,1754013060505,-151.0,0.00026457,7]
[376543294,1754013060516,-151.0,0.00026457,7]
[376543295,1754013060525,-152.097128,0.00026457,7]
[376543296,1754013060535,-151.0,0.00026457,7]
[376543297,1754013060544,-151.0,0.00026457,7]
[376543298,1754013060553,-151.0,0.00026457,7]
[376543299,1754013060562,-151.0,0.00026457,7]
[376543300,1754013060572,-153.93606,0.00026457,7]
[376543301,1754013060581,-151.0,0.00026457,7]
[376543302,1754013060590,-151.0,0.00026457,7]
[376543303,1754013060600,-151.0,0.00026457,7]
[376543304,1754013060610,-151.0,0.00026457,7]
[376543305,1754013060620,-151.981909,0.00026457,7]
[376543306,1754013060629,-468.07685664,0.00026465,2]
[376543307,1754013060638,-460.0,0.00026465,2]
[376543308,1754013060648,-463.22265784,0.00026465,2]
[376543309,1754013060658,-467.14930278,0.00026465,2]
[376543310,1754013060667,-460.0,0.00026465,2]
[376543311,1754013060676,-464.51209095,0.00026465,2]
[376543312,1754013060685,-460.0,0.00026465,2]
[376543313,1754013060693,-460.0,0.00026465,2]
[376543314,1754013060704,-460.0,0.00026465,2]
[376543315,1754013060714,-460.0,0.00026465,2]
[376543316,1754013060726,-460.0,0.00026465,2]
[376543317,1754013060735,-460.0,0.00026465,2]
[376543318,1754013060744,-464.55642775,0.00026465,2]
[376543319,1754013060754,-460.0,0.00026465,2]
[376543320,1754013060763,-460.0,0.00026465,2]
[376543321,1754013060772,-460.0,0.00026465,2]
[376543322,1754013060784,-465.57713555,0.00026465,2]
[376543323,1754013060804,-460.0,0.00026465,2]
[376543324,1754013060822,-460.0,0.00026465,2]
[376543325,1754013060841,-474.53028319,0.00026465,2]
[376543326,1754013060859,-460.0,0.00026465,2]
[376543327,1754013060876,-226.44046322,0.00026465,2]
[376543328,1754013060895,-399.63385011,0.00026465,2]
[376543329,1754013060915,-462.98199279,0.00026465,2]
[376543330,1754013060934,-460.0,0.00026465,2]
[376543331,1754013060952,-460.0,0.00026465,2]
[376543332,1754013060973,-460.0,0.00026465,2]
[376543333,1754013060991,-460.0,0.00026465,2]
[376543334,1754013061004,-460.0,0.00026465,2]
[376543335,1754013061023,-460.0,0.00026465,2]
[376543336,1754013061035,-462.92334584,0.00026465,2]
[376543337,1754013061051,-460.0,0.00026465,2]
[376543338,1754013061064,-460.0,0.00026465,2]
[376543339,1754013061078,-478.70155438,0.00026465,2]
[376543340,1754013061092,-460.0,0.00026465,2]
[376543341,1754013061106,-464.17144988,0.00026465,2]
[376543342,1754013061121,-460.0,0.00026465,2]
[376543343,1754013061134,-460.0,0.00026465,2]
[376543344,1754013061149,-460.0,0.00026465,2]
[376543345,1754013061162,-460.0,0.00026465,2]
[376543346,1754013061175,-460.0,0.00026465,2]
[376543347,1754013061189,-463.08412136,0.00026465,2]
[376543348,1754013061203,-460.0,0.00026465,2]
[376543349,1754013061217,-460.0,0.00026465,2]
[376543350,1754013061232,-467.23572299,0.00026465,2]
[376543351,1754013061246,-464.63593243,0.00026465,2]
[376543352,1754013061259,-679.34,0.00026465,2]
[376543353,1754013061269,-460.0,0.00026465,2]
[376543354,1754013061278,-463.56953604,0.00026465,2]
[376543355,1754013061287,-463.2912787,0.00026465,2]
[376543356,1754013061297,-460.0,0.00026465,2]
[376543357,1754013061306,-460.0,0.00026465,2]
[376543358,1754013061316,-460.0,0.00026465,2]
[376543359,1754013061325,-460.0,0.00026465,2]
[376543360,1754013061334,-460.0,0.00026465,2]
[376543361,1754013061344,-460.0,0.00026465,2]
[376543362,1754013061353,-460.0,0.00026465,2]
[376543363,1754013061362,-460.0,0.00026465,2]
[376543364,1754013061372,-460.0,0.00026465,2]
[376543365,1754013061382,-460.0,0.00026465,2]
[376543366,1754013061391,-460.0,0.00026465,2]
[376543367,1754013061400,-460.0,0.00026465,2]
[376543368,1754013061410,-294.22039449,0.00026465,2]
[376543369,1754013061421,-460.0,0.00026465,2]
[376543370,1754013061431,-460.0,0.00026465,2]
[376543371,1754013061441,-460.0,0.00026465,2]
[376543372,1754013061450,-460.0,0.00026465,2]
[376543373,1754013061606,-460.0,0.00026465,2]
[376543374,1754013061645,-159.4497964,0.00026466,2]
[376543375,1754013061658,-426.496133,0.00026466,2]
[376543376,1754013061667,-360.2232168,0.00026466,2]
[376543377,1754013061676,-400.2627069,0.00026466,2]
[376543378,1754013061685,-153.0,0.00026466,2]
[376543379,1754013061696,-153.0,0.00026466,2]
[376543380,1754013061706,-153.0,0.00026466,2]
[376543381,1754013061716,-153.0,0.00026466,2]
[376543382,1754013061728,-151.0,0.00026473,7]
[376543383,1754013061737,-151.0,0.00026473,7]
[376543384,1754013061747,-151.0,0.00026473,7]
[376543385,1754013061756,-151.0,0.00026473,7]
[376543386,1754013061765,-151.0,0.00026473,7]
[376543387,1754013061774,-151.641184,0.00026473,7]
[376543388,1754013061784,-151.0,0.00026473,7]
[376543389,1754013061793,-151.0,0.00026473,7]
[376543390,1754013061802,-151.0,0.00026473,7]
[376543391,1754013061811,-151.0,0.00026473,7]
[376543392,1754013061824,-151.0,0.00026473,7]
[376543393,1754013061833,-151.0,0.00026473,7]
[376543394,1754013061843,-151.0,0.00026473,7]
[376543395,1754013061853,-151.0,0.00026473,7]
[376543396,1754013061863,-151.0,0.00026473,7]
[376543397,1754013061874,-162.539058,0.00026473,7]
[376543398,1754013061883,-203.839136,0.00026473,7]
[376543399,1754013061895,-203.839136,0.00026473,7]
[376543400,1754013061905,-203.839136,0.00026473,7]
[376543401,1754013061914,-203.839136,0.00026473,7]
[376543402,1754013061924,-203.839136,0.00026473,7]
[376543403,1754013061933,-203.839136,0.00026473,7]
[376543404,1754013061942,-203.839136,0.00026473,7]
[376543405,1754013061951,-203.839136,0.00026473,7]
[376543406,1754013061961,-203.839136,0.00026473,7]
[376543407,1754013061972,-203.839136,0.00026473,7]
[376543408,1754013061982,-203.839136,0.00026473,7]
[376543409,1754013061991,-203.839136,0.00026473,7]
[376543410,1754013062001,-203.839136,0.00026473,7]
[376543411,1754013062010,-203.839136,0.00026473,7]
[376543412,1754013062019,-203.839136,0.00026473,7]
[376543413,1754013062028,-203.839136,0.00026473,7]
[376543414,1754013062037,-203.839136,0.00026473,7]
[376543415,1754013062046,-203.839136,0.00026473,7]
[376543416,1754013062054,-203.839136,0.00026473,7]
[376543417,1754013062064,-203.839137,0.00026473,7]
[376543418,1754013062073,-151.0,0.00026473,7]
[376543419,1754013062082,-151.0,0.00026473,7]
[376543420,1754013062091,-151.0,0.00026473,7]
[376543421,1754013062101,-151.0,0.00026473,7]
[376543422,1754013062110,-151.0,0.00026473,7]
[376543423,1754013062118,-151.0,0.00026473,7]
[376543424,1754013062127,-151.0,0.00026473,7]
[376543425,1754013062136,-151.0,0.00026473,7]
[376543426,1754013062145,-151.0,0.00026473,7]
[376543427,1754013062155,-151.0,0.00026473,7]
[376543428,1754013062164,-151.0,0.00026473,7]
[376543429,1754013062174,-151.0,0.00026473,7]
[376543430,1754013062183,-151.0,0.00026473,7]
[376543431,1754013062192,-237.55851,0.00026473,7]
[376543432,1754013062201,-151.0,0.00026473,7]
[376543433,1754013062211,-151.0,0.00026473,7]
[376543434,1754013062221,-151.0,0.00026473,7]
[376543435,1754013062231,-613.174757,0.00026473,7]
[376543436,1754013062241,-613.174757,0.00026473,7]
[376543437,1754013062250,-151.0,0.00026473,7]
[376543438,1754013062259,-151.0,0.00026473,7]
[376543439,1754013062268,-613.174757,0.00026473,7]
[376543440,1754013062277,-151.0,0.00026473,7]
[376543441,1754013062287,-613.174757,0.00026473,7]
[376543442,1754013062296,-230.804724,0.00026473,7]
[376543443,1754013062305,-613.174757,0.00026473,7]
[376543444,1754013062314,-613.174757,0.00026473,7]
[376543445,1754013062323,-613.174757,0.00026473,7]
[376543446,1754013062332,-613.174757,0.00026473,7]
[376543447,1754013062341,-613.174757,0.00026473,7]
[376543448,1754013062351,-613.174757,0.00026473,7]
[376543449,1754013062360,-613.174757,0.00026473,7]
[376543450,1754013062369,-613.174757,0.00026473,7]
[376543451,1754013062379,-613.174757,0.00026473,7]
[376543452,1754013062389,-613.174757,0.00026473,7]
[376543453,1754013062399,-613.174757,0.00026473,7]
[376543454,1754013062408,-613.174757,0.00026473,7]
[376543455,1754013062418,-613.174757,0.00026473,7]
[376543456,1754013062427,-613.174757,0.00026473,7]
[376543457,1754013062437,-613.174757,0.00026473,7]
[376543458,1754013062447,-613.174755,0.00026473,7]
[376543459,1754013062456,-153.052454,0.00026473,7]
[376543460,1754013062465,-288.402223,0.00026473,7]
[376543461,1754013062477,-288.402223,0.00026473,7]
[376543462,1754013062486,-288.402223,0.00026473,7]
[376543463,1754013062496,-288.402223,0.00026473,7]
[376543464,1754013062506,-288.402223,0.00026473,7]
[376543465,1754013062516,-288.402223,0.00026473,7]
[376543466,1754013062526,-288.402223,0.00026473,7]
[376543467,1754013062536,-288.402223,0.00026473,7]
[376543468,1754013062547,-288.402223,0.00026473,7]
[376543469,1754013062557,-288.402223,0.00026473,7]
[376543470,1754013062566,-288.402223,0.00026473,7]
[376543471,1754013062576,-288.402223,0.00026473,7]
[376543472,1754013062585,-288.402223,0.00026473,7]
[376543473,1754013062594,-288.402223,0.00026473,7]
[376543474,1754013062603,-288.402223,0.00026473,7]
[376543475,1754013062612,-288.402223,0.00026473,7]
[376543476,1754013062622,-288.402223,0.00026473,7]
[376543477,1754013062633,-288.402223,0.00026473,7]
[376543478,1754013062643,-288.402223,0.00026473,7]
[376543479,1754013062653,-288.40222,0.00026473,7]
[376543480,1754013062662,-151.0,0.00026473,7]
[376543481,1754013062672,-152.632396,0.00026473,7]
[376543482,1754013062681,-173.27521291,0.00026478,3]
[376543483,1754013062693,-152.0,0.00026478,3]
[376543484,1754013062702,-152.0,0.00026478,3]